Cogmind - Beta 16 @@@ ROGUE MODE // 2025.12.02 @ 05:58:07 Player: Zonalar Result: Destroyed by S-10 Pest with Light Assault Rifle Performance ------------- Evolutions (0) 0 Regions Visited (1) 200 Robots Destroyed (0) 0 Value Destroyed (0) 0 Prototype IDs (0) 0 Alien Tech Used (0) 0 Bonus (0) 0 TOTAL SCORE: 200 Bonus ------- None Cogmind --------- Core Integrity 0/250 Matter 270/300 Energy 111/125 System Corruption 3% Temperature Cool (2) Movement Walking (120) Location -10/Materials Parts ------- > --- POWER (1) -------- Light Ion Engine > --- PROPULSION (2) --- Aluminum Leg > --- UTILITY (2) ------ Improved Terrain Scanner Seismic Detector > --- WEAPON (2) ------- Small Laser Mining Laser > --- INVENTORY (5) ---- Light Treads Aluminum Leg Small Storage Unit Peak State ------------ > --- POWER ------------ Light Ion Engine > --- PROPULSION ------- Aluminum Leg > --- UTILITY ---------- Improved Terrain Scanner Seismic Detector > --- WEAPON ----------- Small Laser Mining Laser > --- INVENTORY -------- Light Treads Aluminum Leg Small Storage Unit [Rating: 8] Favorites ----------- Power Ion Engine Engine Ion Engine Propulsion Compact Wheel Treads Light Treads Leg Aluminum Leg Wheel Compact Wheel Utility Small Storage Unit Device Improved Terrain Scanner Storage Small Storage Unit Weapon Assault Rifle Energy Gun Medium Laser Ballistic Gun Assault Rifle Special Weapon Mining Laser Build | -11 -10 ------- Run | Yrd Mat Slots Evolved . | . . Power . | . . Propulsion . | . . Utility . | . . Weapon . | . . Parts Attached 15 | 12 3 Power 3 | 2 1 Engine 3 | 2 1 Core . | . . Reactor . | . . Propulsion 4 | 3 1 Treads 1 | 1 . Leg 1 | . 1 Wheel 2 | 2 . Hover . | . . Flight . | . . Utility 3 | 3 . Device 2 | 2 . Storage 1 | 1 . Processor . | . . Hackware . | . . Protection . | . . Artifact . | . . Weapon 5 | 4 1 Energy Gun 3 | 2 1 Energy Cannon . | . . Ballistic Gun 1 | 1 . Ballistic Cannon . | . . Launcher . | . . Special Weapon 1 | 1 . Impact Weapon . | . . Slashing Weapon . | . . Piercing Weapon . | . . Special Melee Weapon . | . . Unidentified Prototypes . | . . Parts Lost 5 | 5 . Power 1 | 1 . Propulsion 1 | 1 . Utility 1 | 1 . Weapon 2 | 2 . Highest Loss Streak 5 | 5 . To Critical Strikes . | . . Average Backups 4 | 4 3 Power . | . . Propulsion 2 | 2 2 Utility . | . . Weapon 1 | 1 . Tool/Special . | . . Unused Backups 4 | . 4 Power . | . . Propulsion 3 | . 3 Utility 1 | . 1 Weapon . | . . Tool/Special . | . . Average Slot Usage (%) 80 | . 80 Engine 11 | . 11 Leg 12 | . 12 Device 28 | . 28 Energy Gun 13 | . 13 Special Weapon 14 | . 14 Peak Build Rating 8 | 6 8 Average Rating 5 | 4 7 On Entrance 2 | . 5 Avg Prop Armor Cover (%) . | . . Naked Turns . | . . Heaviest Build 14 | 14 7 Greatest Support 26 | 26 10 Greatest Overweight (x) 3 | 3 . Average Overweight (x) . | . . Largest Inventory Capacity 8 | 8 5 Average Capacity 6 | 6 5 Most Carried 7 | 7 5 Average Carried 4 | 4 3 Final Capacity 5 | 5 5 Final Carried 5 | 5 3 Class Distribution -------------------- 88% | Mutant 11% | Scavenger-Mutant Dominant Class ---------------- Scavenger-Mutant | -10/Materials Resources | -11 -10 ----------- Run | Yrd Mat Matter Collected 319 | 319 . Remotely . | . . Salvage Created 8 | 8 . Parts . | . . Haulers Intercepted . | . . Recyclers Shooed . | . . Parts Field Recycled . | . . Retrieved Matter . | . . Parts Self-Destructed . | . . Prevented . | . . Parts Restored . | . . Kills | -11 -10 ------- Run | Yrd Mat Combat Hostiles Destroyed 1 | 1 . Guns 1 | 1 . Classes Destroyed 1 | 1 . Assembled 1 | 1 . Best Kill Streak 1 | 1 . Combat Bots Only 1 | 1 . Max Kills in Single Turn 1 | 1 . Gunslinging . | . . Exploded . | . . Melee . | . . Uniques/NPCs Destroyed . | . . Combat | -11 -10 -------- Run | Yrd Mat Hostile Shots Fired 57 | 43 14 Missed 14 | 12 2 Hits 43 | 31 12 Melee 10 | 10 . Projectile 33 | 21 12 Critical Strikes 1 | 1 . Part Disruptions 5 | 5 . Damage Taken 819 | 732 87 Core 254 | 232 22 Absorbed by Shields . | . . Core Remaining (%) 7 | 7 . Volleys Fired 26 | 10 16 Largest 2 | 2 2 Hottest 140 | 70 140 Shots Fired 32 | 14 18 Gun 21 | 14 7 Cannon . | . . Launcher . | . . Special 11 | . 11 Kinetic 8 | 8 . Thermal 23 | 5 18 Explosive . | . . Electromagnetic 1 | 1 . Robot Hit Streak 4 | 3 4 Robot Miss Streak 3 | 3 2 Penetration Max . | . . Secondary Targets 1 | 1 . Max Gunslinging Chain 1 | 1 . Shots Hit Robots 10 | 6 4 Core Hits 4 | 4 . Critical Kills . | . . Critical Parts Destroyed 1 | 1 . Critical Strikes 1 | 1 . Destroy 1 | 1 . Melee Attacks . | . . Impact . | . . Slashing . | . . Piercing . | . . Sneak Attacks . | . . Combat Hostiles . | . . Follow-up Attacks . | . . Damage Inflicted 145 | 88 57 Guns 121 | 88 33 Cannons . | . . Explosions . | . . Melee . | . . Ramming . | . . Kinetic 76 | 76 . Thermal 69 | 12 57 Explosive . | . . Electromagnetic . | . . Impact . | . . Slashing . | . . Piercing . | . . Highest Corruption 3 | 3 3 Average Corruption 3 | 3 3 Corruption Purged . | . . Corruption Blocked . | . . Effects 7 | . 7 Message Errors 5 | . 5 Heat Flow Errors 1 | . 1 Misfires 1 | . 1 Overload Shots . | . . Overflow Damage . | . . Projectiles . | . . Explosions . | . . Melee . | . . Knockbacks . | . . Impact . | . . Kinetic . | . . Secondary . | . . Self-Inflicted Damage . | . . Shots . | . . Rammed . | . . Targets Rammed . | . . Kicked . | . . Crushed . | . . Highest Temperature 247 | 68 247 Average Temperature 46 | 23 55 Received Heat Transfer 360 | 360 . Siege Activations . | . . Martial Activations . | . . Shielding Activations . | . . Robots Disrupted . | . . Combat Hostiles . | . . Robots Corrupted . | . . Combat Hostiles . | . . Parts Fried . | . . Impact Corruptions . | . . Robots Melted . | . . Combat Hostiles . | . . Parts Melted . | . . Heat Transferred 162 | 37 125 Parts Sabotaged . | . . Parts Stolen . | . . Parts Stripped . | . . Power Chain Reactions . | . . Alert | -11 -10 ------- Run | Yrd Mat Maximum Alert Level . | . . Low Security (%) 100 | 100 100 Level 1 . | . . Level 2 . | . . Level 3 . | . . Level 4 . | . . Level 5 . | . . High Security . | . . Max Security . | . . Peak Influence 14 | . 14 Initial . | . . Average . | . 1 Influence Increases 26 | . 26 Successful Hack 19 | . 19 Destroy Structure 7 | . 7 Influence Decreases 25 | . 25 Time Decay 25 | . 25 Squads Dispatched . | . . Investigation . | . . Extermination . | . . Reinforcement . | . . Assault . | . . Garrison . | . . Intercept . | . . Searches Triggered . | . . Construction Impeded . | . . Haulers Reinforced . | . . Active Scanning Responses . | . . Cargo Convoy Interrupts . | . . Stealth | -11 -10 --------- Run | Yrd Mat Distress Signals 1 | . 1 Communications Jammed . | . . Distress Signals . | . . Times Spotted 15 | 10 5 Peak Tracking Total 7 | 7 4 Tactical Retreats 2 | 2 . Traps | -11 -10 ------- Run | Yrd Mat Traps Triggered . | . . Indirectly . | . . Trap Hack Attempts . | . . Triggered . | . . Disarmed . | . . Reprogrammed . | . . Reused . | . . Traps Extracted . | . . Installed . | . . Triggered . | . . Machines | -11 -10 ---------- Run | Yrd Mat Machines Disabled . | . . Max in Single Turn . | . . Machines Repaired . | . . Machines Dismantled . | . . Machines Sabotaged . | . . Overloaded Fab Kills . | . . Hacking | -11 -10 --------- Run | Yrd Mat Machines Accessed 3 | . 3 Terminals 3 | . 3 Fabricators . | . . Repair Stations . | . . Recycling Units . | . . Scanalyzers . | . . Garrison Access . | . . Total Hacks 6 | . 6 Successful 3 | . 3 Failed 3 | . 3 Catastrophic 2 | . 2 Database Lockouts . | . . Manual 6 | . 6 Terminals 6 | . 6 Fabricators . | . . Repair Stations . | . . Recycling Units . | . . Scanalyzers . | . . Garrison Access . | . . Terminal Hacks 1 | . 1 Record 1 | . 1 Fabricator Hacks . | . . Repair Station Hacks . | . . Recycling Unit Hacks . | . . Scanalyzer . | . . Garrison Access Hacks . | . . Unauthorized Hacks 2 | . 2 Terminals 2 | . 2 Botnet 2 | . 2 Fabricators . | . . Repair Stations . | . . Recycling Units . | . . Scanalyzers . | . . Garrison Access . | . . Data Cores Recovered . | . . Used . | . . Hacking Detections 2 | . 2 Full Trace Events . | . . Feedback Events . | . . Feedback Blocked . | . . Robot Schematics Acquired . | . . Robots Built . | . . Authchips . | . . Time . | . . Total Robot Build Rating . | . . Part Schematics Acquired . | . . Parts Built . | . . Authchips . | . . Time . | . . Total Part Build Rating . | . . Part Studies Acquired . | . . Parts Repaired . | . . Time . | . . Parts Recycled . | . . Recycled Matter . | . . Retrieved Matter . | . . Retrieved Components . | . . Parts Scanalyzed . | . . Part Schematics Acquired . | . . Parts Damaged . | . . Bothacking | -11 -10 ------------ Run | Yrd Mat Used RIF Installer . | . . Robots Hacked . | . . Non-combat . | . . Combat . | . . Robot Hacks Applied . | . . Relay Couplers Released . | . . Fabnet Peak Effective % . | . . Robots Rewired . | . . Allies Hacked . | . . Hacks Repelled . | . . Allies | -11 -10 -------- Run | Yrd Mat Total Allies . | . . Largest Group . | . . Highest-Rated Group . | . . Highest-Rated Ally . | . . Total Orders . | . . Ally Attacks . | . . Total Damage . | . . Kills . | . . Allies Corrupted . | . . Allies Melted . | . . Intel | -11 -10 ------- Run | Yrd Mat Active Infowar (turns) 332 | 27 305 Terrain 332 | 27 305 Seismic 330 | 25 305 Robot Analysis Total . | . . Derelict Logs Recovered . | . . Drone Launches . | . . Drone Recoveries . | . . Exploration | -11 -10 ------------- Run | Yrd Mat Turns Passed 2158 | 1853 305 Spaces Moved 1294 | 1164 130 Core 155 | 129 26 Treads 4 | 4 . Legs 104 | . 104 Wheels 1031 | 1031 . Hover . | . . Flight . | . . Fastest Speed 50 | 50 50 Average Speed 88 | 86 106 Slowest Speed 200 | 200 120 Overloaded Moves . | . . Propulsion Burnouts . | . . Robots Hopped . | . . Potential Cave-ins . | . . Cave-ins Triggered 1 | 1 . Exploration Rate (%) 42 | 70 15 Regions Visited 1 Branch Regions . Pre-discovered Areas . | . . Known Exits Taken . | . . Unknown Exits Taken 1 | 1 . Scrap Searched . | . . Spaces Dug 9 | . 9 Terrain Destroyed 9 | . 9 Melee . | . . Projectile 9 | . 9 AOE . | . . Terrain Rammed . | . . Walls Destroyed . | . . Machines Disabled . | . . Actions | -11 -10 --------- Run | Yrd Mat Total 2256 | 1997 259 Wait 907 | 799 108 Move 1293 | 1163 130 Hop . | . . Pick Up 14 | 13 1 Fast Attach 5 | 4 1 Attach 10 | 8 2 Detach . | . . Swap . | . . Drop 1 | . 1 Fire 26 | 10 16 Melee . | . . Ram . | . . Kick . | . . Crush . | . . Escape Stasis . | . . Rewire . | . . Trap . | . . Miscellaneous . | . . Route ------- -11/Scrapyard -10/Materials (discovered 1 exit: [Min]) History --------- Turn | Location | Event 13 | -11/Scrapyard | Discovered new exit (range 16) 1490 | -11/Scrapyard | Assembled infested the area 1785 | -11/Scrapyard | Crushed by falling debris 1799 | -11/Scrapyard | Released all parts (3) 1800 | -11/Scrapyard | Core integrity fell below 50% 1827 | -11/Scrapyard | Lost 5 parts (1p1n1u2w) 1842 | -11/Scrapyard | Core integrity fell below 20% 1854 | -11/Scrapyard | Entered Materials 1865 | -10/Materials | Build established: Mutant 1927 | -10/Materials | Discovered new exit (range 13) 2159 | -10/Materials | Destroyed by S-10 Pest with Light Assault Rifle Last Messages --------------- 01865_ Acquired Sml. Storage Unit. 01869_ Acquired Sml. Laser. 01883_ System corrupted: FCS attempts to trigger Sml. Laser. 01883_ System corrupted: Sml. Laser misfires. 01927_ EXIT=FOUND 01946_ Connecting with Terminal... 01958_ PLP6VO/QPZLFD:HU4|HSEZ>0|D1HY/TL SDJO 01985_ A>ZJQYNDVYJE<782IBQWY3KFVL2KA1UGL 02011_ System corrupted: Heat flow error (+267). 02026_ XH7TBQ9#MSRHY6CG IFHOMMTN 02060_ GP P6IOORVZ,DHVN,EX6,UUZ/HCD 02085_ Connecting with Terminal... >>Trojan(Botnet) Trojan loaded successfully. Testing... Terminal linked with 1 system. Awaiting botnet instructions. 02085_ Connecting with Terminal... 02133_ W-16 Scout sends out distress signal. 02136_ WCCD3NE/LOQ|# 0| IZ:TZ Map ----- +----------------------------------------------------+ | | | | | | | | | | | | | | | | | | | | | | | | | | | | | | | | | | | | | | | ??????????#????###????????????????#????##??????#?? | | ??#?#???#???#????#????#??????????????????????????? | | ???????????????????#??????#????#???#???#??######## | | ########################################### # | | ss + # | | ???# ##### ########;################# """ # | | ???# #???# #??#####@######?????#?#??# "T # | | ???# #####+#### # """ ##??????#??# """ # | | ?#?# ##### ## ## # """ #??????????# + | | ???#?????# ## ! ## # """ #?#??#?#?#?######## | | ???????#?# ## = ## + #?????#???"??????## | | ??? ?????# ## ## # #??????? ?????#?## | | ?????????# ## "T" ## # #??? ???? ?"?#?##" | | ?????????# ## ## ########???????? ????## " | | ???? #???# #####+### #??????????????